{"text_format":"3","workbook":"xlsx","n_sheets":2,"sheets":["Reporte_datos_HC_manual","Instructivo"],"not_rendered":{"images":3,"comments":1},"read":"whole","date_system":"1900"}

{"sheet":"Reporte_datos_HC_manual","index":0,"n_rows":147,"n_cols":68,"rows_kept":147,"merged":[[0,1,0,49],[1,0,1,9],[1,10,1,19],[1,20,1,29],[1,30,1,39],[1,40,1,50],[2,0,2,50],[147,0,150,50]]}
[null,"FORMATO\nREPORTE DATOS CLINICOS HISTORIA CLINICA MANUAL",{"$nulls":51},"NORTE","EDUARDO SANTOS","PRIMERA INFANCIA","RC- Registro Civil             ","MES","FEMENINO","SALUD TOTAL","ENFERMERO","SI","0-  No Aplica","0- No aplica","0 -No aplica","0-    No Aplica","0-    No Aplica","0- No aplica"]
["PROCESO: GESTIÓN DEL RIESGO",{"$nulls":9},"CÓDIGO: GDR-S1-F15",{"$nulls":9},"VIGENCIA: 22/11/2022",{"$nulls":9},"V1",{"$nulls":9},"PAGINA: 1  DE 1",{"$nulls":12},"ORIENTE","GRANJAS","INFANCIA","TI- Tarjeta De Identidad               ","AÑO","MASCULINO","NUEVA EPS","MEDICO","NO","3-  Sospechosa de problemas de desarrollo","4- Falla","4 -Alto","4-    Sospechoso de deterioro cognoscitivo ","4-    Próstata anormal","4- Mama anormal"]
[{"$nulls":53},"SUR","FORTALECILLAS","ADOLESCENCIA","CE- Cedula De Extranjería                  ",null,null,"SANITAS","ODONTOLOGO",null,"4- Riesgo de problemas del desarrollo","5- Pasa","5 -Bajo","5-    Normal","5-    Próstata normal","5- Mama normal"]
["ZONA","SEDE","FECHA DE CONSULTA DE VALORACION INTEGRAL","NOMBRE CONSULTA","TIPO IDENTIFICACION DEL USUARIO","NUMERO DE IDENTIFICACION DEL USUARIO","PRIMER APELLIDO\nDEL USUARIO","SEGUNDO APELLIDO\nDEL USUARIO","PRIMER NOMBRE\nDEL USUARIO","SEGUNDO NOMBRE\nDEL USUARIO","FECHA NACIMIENTO","EDAD","UNIDAD DE MEDIDA EDAD","SEXO","EPS USUARIO","DIRECCION","TELEFONO","NOMBRE PROFESIONAL","PROFESION","PESO EN KILOS","TALLA EN CENTIMETROS","IMC","ESTADO NUTRICIONAL","TAS","TAD","FC","FR","FECHA TSH NEONATAL","RESULTADO DE TSH NEONATAL","FECHA DE CONSEJERÍA EN LACTANCIA MATERNA","RECIBE LACTANCIA MATERNA EXCLUSIVA","RESULTADO ESCALA ABREVIADA DE DESARROLLO AREA DE MOTRICIDAD GRUESA","RESULTADO ESCALA ABREVIADA DE DESARROLLO AREA DE MOTRICIDAD FINO-ADAPTATIVA","RESULTADO ESCALA ABREVIADA DE DESARROLLO AREA PERSONAL SOCIAL","RESULTADO ESCALA ABREVIADA DE DESARROLLO AREA DE MOTRICIDAD AUDICION LENGUAJE","DPT MENORES DE 5 AÑOS","GESTACIÓN","REALIZACION AGUDEZA VISUAL","AGUDEZA VISUAL LEJANA OJO IZQUIERDO","AGUDEZA VISUAL LEJANA OJO DERECHO","RESULTADO TAMIZAJE VALE","CLASIFICACION DEL RIESGO CARDIOVASCULAR","RESULTADO DE LA PRUEBA MINI-MENTAL STATE  >60 AÑOS","REALIZACION DEl TACTO RECTAL","RESULTADO DEL TACTO RECTAL","REALIZACION CLINICO DE MAMA","RESULTADO EXAMEN CLINICO DE MAMA","SINTOMÁTICO RESPIRATORIO","CONSUMO DE TABACO","LEPRA","NOMBRE QUIEN DILIGENCIA FORMATO",{"$nulls":3},"SAN LUIS","JUVENTUD","CC- Cedula De Ciudadanía                 ",null,null,"AIC",null,null,"5-  Desarrollo esperado para la edad ","21- Riesgo no evaluado","6 -Moderado","21-    Riesgo no evaluado","21-   Riesgo no evaluado","21- Riesgo no evaluado"]
[{"$nulls":21},{"$f":"IF(T5=\"\",\"\",IF(T5=\"\",\"\",T5/POWER(U5,2)*10000))","v":""},{"$f":"IF(V5=\"\",\"\",IF(AND(V5>=0,V5<15.99),\"INFRAPESO\",IF(AND(V5>=16,V5<=18.49),\"DELGADEZ\",IF(AND(V5>=18.5,V5<=24.99),\"NORMAL\",IF(AND(V5>=25,V5<=29.99),\"SOBREPESO\",IF(AND(V5>=30),\"OBESIDAD\"))))))","v":""},{"$nulls":31},"AIPECITO","ADULTEZ","PA- Pasaporte 3. Geografía de Residencia",null,null,"FAMISANAR",null,null,"21-  Riesgo no evaluado ",null,"21-Riesgo no evaluado"]
[{"$nulls":21},{"$f":"IF(T6=\"\",\"\",IF(T6=\"\",\"\",T6/POWER(U6,2)*10000))","v":""},{"$f":"IF(V6=\"\",\"\",IF(AND(V6>=0,V6<15.99),\"INFRAPESO\",IF(AND(V6>=16,V6<=18.49),\"DELGADEZ\",IF(AND(V6>=18.5,V6<=24.99),\"NORMAL\",IF(AND(V6>=25,V6<=29.99),\"SOBREPESO\",IF(AND(V6>=30),\"OBESIDAD\"))))))","v":""},{"$nulls":31},"CHAPINERO","VEJEZ","MS- Menor Sin Identificación "]
[{"$nulls":21},"","",{"$nulls":31},"SAN FRANCISCO","PLANIFICACION FAMILIAR","AS- Adulto Sin Identificación "]
[{"$nulls":21},"","",{"$nulls":31},"SAN JORGE","CONSULTA EXTERNA","CD-Carnet Diplomático"]
[{"$nulls":21},"","",{"$nulls":31},"PEÑAS BLANCAS","RCV","CN- Certificado de Nacido Vivo"]
[{"$nulls":21},"","",{"$nulls":31},"BUSIRACO","CONTROL PRENATAL","PE- Perminso especial de permanencia"]
[{"$nulls":21},"","",{"$nulls":31},"GUACIRCO","DESNUTRICION"]
[{"$nulls":21},"","",{"$nulls":31},"CANAIMA","CITA PRECONCEPCIONAL"]
[{"$nulls":21},"","",{"$nulls":31},"IPC"]
[{"$nulls":21},"","",{"$nulls":31},"CAGUAN"]
[{"$nulls":21},"","",{"$nulls":31},"EL TRIUNFO"]
[{"$nulls":21},"","",{"$nulls":31},"CHAPURO"]
[{"$nulls":21},"","",{"$nulls":31},"SAN BARTOLO"]
[{"$nulls":21},"","",{"$nulls":31},"PALMAS"]
[{"$nulls":21},"","",{"$nulls":31},"VEGALARGA"]
[{"$nulls":21},"","",{"$nulls":31},"SIETE DE AGOSTO"]
[{"$nulls":21},"","",{"$nulls":31},"SAN ANTONIO"]
[{"$nulls":21},"","",{"$nulls":31},"PALACIO"]
[{"$nulls":21},"","",{"$nulls":31},"PALESTINA"]
[{"$nulls":21},"","",{"$nulls":31},"COLEGIO"]
[{"$nulls":21},"","",{"$nulls":31},"EL CEDRAL"]
[{"$nulls":21},"","",{"$nulls":31},"SANTA HELENA"]
[{"$nulls":21},"","",{"$nulls":31},"PIEDRA MARCADA"]
[{"$nulls":21},"","",{"$nulls":31},"EXTRAMURAL MOVIL"]
[{"$nulls":21},"","",{"$nulls":31},"CAIMI"]
[{"$nulls":21},"",""]
[{"$nulls":21},"",""]
[{"$nulls":21},"",""]
[{"$nulls":21},"",""]
[{"$nulls":21},"",""]
[{"$nulls":21},"",""]
[{"$nulls":21},"",""]
[{"$nulls":21},"",""]
[{"$nulls":21},"",""]
[{"$nulls":21},"",""]
[{"$nulls":21},"",""]
[{"$nulls":21},"",""]
[{"$nulls":21},"",""]
[{"$nulls":21},"",""]
[{"$nulls":21},"",""]
[{"$nulls":21},"",""]
[{"$nulls":21},"",""]
[{"$nulls":21},"",""]
[{"$nulls":21},"",""]
[{"$nulls":21},"",""]
[{"$nulls":21},"",""]
[{"$nulls":21},"",""]
[{"$nulls":21},"",""]
[{"$nulls":21},"",""]
[{"$nulls":21},"",""]
[{"$nulls":21},"",""]
[{"$nulls":21},"",""]
[{"$nulls":21},"",""]
[{"$nulls":21},"",""]
[{"$nulls":21},"",""]
[{"$nulls":21},"",""]
[{"$nulls":21},"",""]
[{"$nulls":21},"",""]
[{"$nulls":21},"",""]
[{"$nulls":21},"",""]
[{"$nulls":21},"",""]
[{"$nulls":21},"",""]
[{"$nulls":21},"",""]
[{"$nulls":21},"",""]
[{"$nulls":21},"",""]
[{"$nulls":21},{"$f":"IF(T70=\"\",\"\",IF(T70=\"\",\"\",T70/POWER(U70,2)*10000))","v":""},{"$f":"IF(V70=\"\",\"\",IF(AND(V70>=0,V70<15.99),\"INFRAPESO\",IF(AND(V70>=16,V70<=18.49),\"DELGADEZ\",IF(AND(V70>=18.5,V70<=24.99),\"NORMAL\",IF(AND(V70>=25,V70<=29.99),\"SOBREPESO\",IF(AND(V70>=30),\"OBESIDAD\"))))))","v":""}]
[{"$nulls":21},"",""]
[{"$nulls":21},"",""]
[{"$nulls":21},"",""]
[{"$nulls":21},"",""]
[{"$nulls":21},"",""]
[{"$nulls":21},"",""]
[{"$nulls":21},"",""]
[{"$nulls":21},"",""]
[{"$nulls":21},"",""]
[{"$nulls":21},"",""]
[{"$nulls":21},"",""]
[{"$nulls":21},"",""]
[{"$nulls":21},"",""]
[{"$nulls":21},"",""]
[{"$nulls":21},"",""]
[{"$nulls":21},"",""]
[{"$nulls":21},"",""]
[{"$nulls":21},"",""]
[{"$nulls":21},"",""]
[{"$nulls":21},"",""]
[{"$nulls":21},"",""]
[{"$nulls":21},"",""]
[{"$nulls":21},"",""]
[{"$nulls":21},"",""]
[{"$nulls":21},"",""]
[{"$nulls":21},"",""]
[{"$nulls":21},"",""]
[{"$nulls":21},"",""]
[{"$nulls":21},"",""]
[{"$nulls":21},"",""]
[{"$nulls":21},"",""]
[{"$nulls":21},"",""]
[{"$nulls":21},"",""]
[{"$nulls":21},"",""]
[{"$nulls":21},"",""]
[{"$nulls":21},"",""]
[{"$nulls":21},"",""]
[{"$nulls":21},"",""]
[{"$nulls":21},"",""]
[{"$nulls":21},"",""]
[{"$nulls":21},"",""]
[{"$nulls":21},"",""]
[{"$nulls":21},"",""]
[{"$nulls":21},"",""]
[{"$nulls":21},"",""]
[{"$nulls":21},"",""]
[{"$nulls":21},"",""]
[{"$nulls":21},"",""]
[{"$nulls":21},"",""]
[{"$nulls":21},"",""]
[{"$nulls":21},"",""]
[{"$nulls":21},"",""]
[{"$nulls":21},"",""]
[{"$nulls":21},"",""]
[{"$nulls":21},"",""]
[{"$nulls":21},"",""]
[{"$nulls":21},"",""]
[{"$nulls":21},"",""]
[{"$nulls":21},"",""]
[{"$nulls":21},"",""]
[{"$nulls":21},"",""]
[{"$nulls":21},"",""]
[{"$nulls":21},"",""]
[{"$nulls":21},{"$f":"IF(T134=\"\",\"\",IF(T134=\"\",\"\",T134/POWER(U134,2)*10000))","v":""},{"$f":"IF(V134=\"\",\"\",IF(AND(V134>=0,V134<15.99),\"INFRAPESO\",IF(AND(V134>=16,V134<=18.49),\"DELGADEZ\",IF(AND(V134>=18.5,V134<=24.99),\"NORMAL\",IF(AND(V134>=25,V134<=29.99),\"SOBREPESO\",IF(AND(V134>=30),\"OBESIDAD\"))))))","v":""}]
[{"$nulls":21},"",""]
[{"$nulls":21},"",""]
[{"$nulls":21},"",""]
[{"$nulls":21},"",""]
[{"$nulls":21},"",""]
[{"$nulls":21},"",""]
[{"$nulls":21},"",""]
[{"$nulls":21},"",""]
[{"$nulls":21},"",""]
[{"$nulls":21},"",""]
[{"$nulls":21},"",""]
[{"$nulls":21},"",""]
[{"$nulls":21},"",""]

{"sheet":"Instructivo","index":1,"n_rows":67,"n_cols":8,"rows_kept":67,"merged":[[0,1,0,7],[1,0,1,1],[1,2,1,3],[1,4,1,5],[1,7,1,8],[2,0,2,8],[3,0,3,8],[4,0,4,8],[5,0,5,1],[5,2,5,8],[6,0,6,1],[6,2,6,8],[7,0,7,8],[8,0,8,8],[9,0,9,8],[10,0,10,1],[10,2,10,8],[11,0,11,1],[11,2,11,8],[12,0,12,1],[12,2,12,8],[13,0,13,1],[13,2,13,8],[14,0,14,1],[14,2,14,8],[15,0,15,1],[15,2,15,8],[16,0,16,1],[16,2,16,8],[17,0,17,1],[17,2,17,8],[18,0,18,1],[18,2,18,8],[19,0,19,1],[19,2,19,8],[20,0,20,1],[20,2,20,8],[21,0,21,1],[21,2,21,8],[22,0,22,1],[22,2,22,8],[23,0,23,1],[23,2,23,8],[24,0,24,1],[24,2,24,8],[25,0,25,1],[25,2,25,8],[26,0,26,1],[26,2,26,8],[27,0,27,1],[27,2,27,8],[28,0,28,1],[28,2,28,8],[29,0,29,1],[29,2,29,8],[30,0,30,1],[30,2,30,8],[31,0,31,1],[31,2,31,8],[32,0,32,1],[32,2,32,8],[33,0,33,1],[33,2,33,8],[34,0,34,1],[34,2,34,8],[35,0,35,1],[35,2,35,8],[36,0,36,1],[36,2,36,8],[37,0,37,1],[37,2,37,8],[38,0,38,1],[38,2,38,8],[39,0,39,1],[39,2,39,8],[40,0,40,1],[40,2,40,8],[41,0,41,1],[41,2,41,8],[42,0,42,1],[42,2,42,8],[43,0,43,1],[43,2,43,8],[44,0,44,1],[44,2,44,8],[45,0,45,1],[45,2,45,8],[46,0,46,1],[46,2,46,8],[47,0,47,1],[47,2,47,8],[48,0,48,1],[48,2,48,8],[49,0,49,1],[49,2,49,8],[50,0,50,1],[50,2,50,8],[51,0,51,1],[51,2,51,8],[52,0,52,1],[52,2,52,8],[53,0,53,1],[53,2,53,8],[54,0,54,1],[54,2,54,8],[55,0,55,1],[55,2,55,8],[56,0,56,1],[56,2,56,8],[57,0,57,1],[57,2,57,8],[58,0,58,1],[58,2,58,8],[59,0,59,1],[59,2,59,8],[60,0,60,1],[60,2,60,8],[61,0,61,8],[62,0,62,8],[63,0,63,2],[63,3,63,5],[63,6,63,8],[64,0,64,2],[64,3,64,5],[64,6,64,8],[65,0,65,2],[65,3,65,5],[65,6,65,8],[66,0,66,2],[66,3,66,5],[66,6,66,8],[67,0,70,8]]}
[null,"FORMATO\nREPORTE DATOS CLINICOS HISTORIA CLINICA MANUAL "]
["PROCESO: GESTIÓN DEL RIESGO",null,"CÓDIGO: GDR-S1-F15",null,"VIGENCIA: 22/11/2022",null,"V1","PAGINA: 1  DE 2"]
[]
["INSTRUCTIVO PARA DILIGENCIAR EL FORMATO\n\"REPORTE DATOS CLINICOS HISTORIA CLINICA MANUAL\""]
[]
["OBJETIVO:",null,"Registrar los datos clinicos de las historias manuales necesarios para el reporte en la resolucion 202 de 2020 y susceptibles de medicion de Indicadores."]
["ALCANCE:",null,"Aplica para todo el personal asistencial y administrativo involucrados en la atención y valoración integral con registro clinico manual de la ESE Carmen Emilia Ospina."]
[]
["Para el diligenciamiento correcto del formato tenga en cuenta lo siguiente:"]
[]
["ZONA:",null,"Registrar la zona a la que pertenece la sede donde se realiza la atencion, según la lista desplegable."]
["SEDE:",null,"Registrar la sede donde se realiza la atencion, según la lista desplegable."]
["FECHA DE CONSULTA DE VALORACION INTEGRAL:",null,"Registrar en formato dd/mm/aaaa la fecha de la valoracion integral (consulta)."]
["NOMBRE CONSULTA:",null,"Registrar el nombre de la consulta según la lista desplegable."]
["TIPO IDENTIFICACION DEL USUARIO:",null,"Registrar según lista desplegable el tipo de ID del usuario atendido."]
["NUMERO DE IDENTIFICACION DEL USUARIO:",null,"Registrar el numero de ID del usuario."]
["PRIMER APELLIDO\nDEL USUARIO:",null,"Registrar el primer apellido del usuario atendido."]
["SEGUNDO APELLIDO\nDEL USUARIO:",null,"Registrar el segundo apellido del usuario atendido, si no tiene registrar (NOAP)."]
["PRIMER NOMBRE\nDEL USUARIO:",null,"Registrar el primer nombre del usuario atendido."]
["SEGUNDO NOMBRE\nDEL USUARIO:",null,"Registrar el segundo nombre del usuario atendido, si no tiene registrar (NONE)."]
["FECHA NACIMIENTO:",null,"Registrar en formato dd/mm/aaaa la fecha de nacimiento del usuario."]
["EDAD:",null,"Registrar la edad en numeros del usuario atendido."]
["UNIDAD MEDIDA EDAD:",null,"Registrar según la lista desplegable si la edad es en meses o años."]
["SEXO:",null,"Registrar el sexo del usuario atendido, según lista desplegable."]
["EPS USUARIO:",null,"Registrar la EAPB del usuario atendido, según lista desplegable."]
["DIRECCION:",null,"Registrar la direccion de residencia del usuario."]
["TELEFONO:",null,"Registrar el numero de contacto telefonico."]
["NOMBRE PROFESIONAL:",null,"Registrar el nombre completo del profesional que realizo la atencion."]
["PROFESION:",null,"Registrar la profesional del Talento humano que realizo la atencion."]
["PESO EN KILOS:",null,"Registrar el KG el peso del usuario."]
["TALLA EN CENTIMETROS:",null,"Registrar la Talla en Cm del usuario atendido"]
["IMC:",null,"Registro con formula preestablecida, por lo que al registrar adecuadamente el peso y talla, aparece el reporte automatico."]
["ESTADO NUTRICIONAL:",null,"Registro con formula preestablecida, por lo que al registrar adecuadamente el peso y talla, aparece el reporte automatico."]
["TAS:",null,"Registrar la tension arterial sistolica  del usuario atendido."]
["TAD",null,"Registrar la tension arterial diastolica del usuario atendido."]
["FC",null,"Registrar la frecuencia cardiaca del usuario atendido."]
["FR",null,"Registrar la frecuencia respiratoria del usuario atendido."]
["FECHA TSH NEONATAL:",null,"Registrar en formato dd/mm/aaaa el reporte de TSH Neonatal , si no aplica registrar NA."]
["RESULTADO DE TSH NEONATAL:",null,"Registrar el valor numerico el reporte del TSH Neonatal."]
["FECHA DE CONSEJERÍA EN LACTANCIA MATERNA:",null,"Registrar en formato dd/mm/aaaa la fecha de la consejeria de la lactancia materna (para menores de 6 meses), esta se puede proporciar en la misma consulta por medicina o enfermeria."]
["RECIBE LACTANCIA MATERNA EXCLUSIVA:",null,"Registrar si el usuario menor de 6 meses, recibe lactancia materna exclusiva, Si o NO."]
["RESULTADO ESCALA ABREVIADA DE DESARROLLO AREA DE MOTRICIDAD GRUESA:",null,"Registrar el resultado de la EAD de este Item según corresponda en la lista desplegable."]
["RESULTADO ESCALA ABREVIADA DE DESARROLLO AREA DE MOTRICIDAD FINO-ADAPTATIVA:",null,"Registrar el resultado de la EAD de este Item según corresponda en la lista desplegable."]
["RESULTADO ESCALA ABREVIADA DE DESARROLLO AREA PERSONAL SOCIAL:",null,"Registrar el resultado de la EAD de este Item según corresponda en la lista desplegable."]
["RESULTADO ESCALA ABREVIADA DE DESARROLLO AREA DE MOTRICIDAD AUDICION LENGUAJE:",null,"Registrar el resultado de la EAD de este Item según corresponda en la lista desplegable."]
["DPT MENORES DE 5 AÑOS",null,"Registrar el menor de 5 años tiene o no desnutricion, según lista desplegable."]
["GESTACIÓN:",null,"Registrar si el usuario esta en estado de gestacion, según lista desplegable."]
["REALIZACION AGUDEZA VISUAL:",null,"Registrar si se realiza SI o NO medicion de la agudeza visual."]
["AGUDEZA VISUAL LEJANA OJO IZQUIERDO:",null,"Registrar el resultado de la AV del ojo izquierdo, según lista desplegable."]
["AGUDEZA VISUAL LEJANA OJO DERECHO:",null,"Registrar el resultado de la AV del ojo derecho, según lista desplegable."]
["RESULTADO TAMIZAJE VALE:",null,"Registrar el resultado del tamizaje VALE según lista desplegable."]
["CLASIFICACION DEL RIESGO CARDIOVASCULAR:",null,"Registrar el resultado de la clasificacion del RCV según la lista desplegable."]
["RESULTADO DE LA PRUEBA MINI-MENTAL STATE >60 AÑOS:",null,"Registrar el resultado de la prueba Mini Mental State según la lista desplegable."]
["REALIZACION DEl TACTO RECTAL:",null,"Registrar si se realizo Si o No el tacto rectal."]
["RESULTADO DEL TACTO RECTAL:",null,"Registrar el resultado del tacto rectal según lista desplegable."]
["REALIZACION CLINICO DE MAMA:",null,"Registrar si se realizo Si o NO el examen clinico de mama."]
["RESULTADO EXAMEN CLINICO DE MAMA:",null,"Registrar el resultado del examen clinico de mama según lista desplegable."]
["SINTOMÁTICO RESPIRATORIO:",null,"Registrar si el usuairo es Si o NO sintomatico respiratorio."]
["CONSUMO DE TABACO:",null,"Registrar Si o NO el usuario es consumindor."]
["LEPRA:",null,"Registrar si es usuario es diagnosticado con Lepra."]
["NOMBRE QUIEN DILIGENCIA FORMATO:",null,"Registrar el nombre completo de la persona que realiza el reporte de los datos."]
[]
["CONTROL DE CAMBIOS"]
["Versión ",null,null,"Descripción del cambio",null,null,"Fecha"]
[1,null,null,"Elaboración del documento: Se elabora documento con el fin de registrar los datos clinicos de las historias manuales necesarios para el reporte en la resolucion 202 de 2020 y susceptibles de medicion de Indicadores y asi mismo obtener una mejora continua en el subproceso: \"Promoción y mantenimiento de la salud\".",null,null,"2022-11-22"]
["Nombre: Lina Maria Ricaurte Vargas.\nContratista área Tecnico Cientifica.\n\n\n\nNombre: Evelyn Karolina García Polanco.\nContratista área Garantía de la Calidad. ",null,null,"Nombre: Irma Susana Bermúdez Acosta.\nContratista área Garantía de la Calidad.",null,null,"Nombre: Ingry Alexandra Suarez Castro.\nCargo: Subgerente Tecnico Cientifica."]
["Elaboró",null,null,"Revisó",null,null,"Aprobó"]